fUSD/lending_fUSD_20250213
["ID","MTS","AMOUNT","RATE_DAILY","PERIOD"]
[352915455,1739418646333,-1405.45,0.00016438,2]
[352915456,1739418646342,-500.0,0.00016438,2]
[352915457,1739418646352,-500.0,0.00016438,2]
[352915458,1739418646361,-659.77,0.00016438,2]
[352915459,1739418646370,-501.05333239,0.00016438,2]
[352915460,1739418646380,-503.07452328,0.00016438,2]
[352915461,1739418646389,-500.0,0.00016438,2]
[352915462,1739418646399,-504.36948586,0.00016438,2]
[352915463,1739418646409,-500.0,0.00016438,2]
[352915464,1739418646418,-500.0,0.00016438,2]
[352915465,1739418646427,-1875.5,0.00016438,2]
[352915466,1739418646437,-1147.95,0.00016438,2]
[352915467,1739418646447,-509.07371761,0.00016438,2]
[352915468,1739418646457,-1942.35,0.00016438,2]
[352915469,1739418646466,-2384.1,0.00016438,2]
[352915470,1739418646475,-1374.38,0.00016438,2]
[352915471,1739418646485,-1563.21,0.00016438,2]
[352915472,1739418646495,-4529.32,0.00016438,2]
[352915473,1739418646504,-1011.53,0.00016438,2]
[352915474,1739418646514,-2555.87,0.00016438,2]
[352915475,1739418646523,-744.13,0.00016438,2]
[352915476,1739418646532,-1262.65,0.00016438,2]
[352915477,1739418646542,-500.0,0.00016438,2]
[352915478,1739418646551,-500.0,0.00016438,2]
[352915479,1739418646562,-500.0,0.00016438,2]
[352915480,1739418646572,-1856.46,0.00016438,2]
[352915481,1739418646581,-500.0,0.00016438,2]
[352915482,1739418646591,-500.0,0.00016438,2]
[352915483,1739418646600,-500.0,0.00016438,2]
[352915484,1739418646610,-179.570962,0.00016438,2]
[352915485,1739418646619,-856.78,0.00016438,2]
[352915486,1739418646629,-500.0,0.00016438,2]
[352915487,1739418646638,-2102.69,0.00016438,2]
[352915488,1739418646647,-1493.0,0.00016438,2]
[352915489,1739418646657,-502.29497827,0.00016438,2]
[352915490,1739418646667,-500.0,0.00016438,2]
[352915491,1739418646676,-2811.49,0.00016438,2]
[352915492,1739418646686,-809.21,0.00016438,2]
[352915493,1739418646696,-500.0,0.00016438,2]
[352915494,1739418646706,-500.0,0.00016438,2]
[352915495,1739418646716,-5158.96,0.00016438,2]
[352915496,1739418646726,-500.0,0.00016438,2]
[352915497,1739418646735,-2133.97,0.00016438,2]
[352915498,1739418646746,-1458.81,0.00016438,2]
[352915499,1739418646758,-500.0,0.00016438,2]
[352915500,1739418646768,-1290.54,0.00016438,2]
[352915501,1739418646777,-1255.61,0.00016438,2]
[352915502,1739418646787,-505.71094077,0.00016438,2]
[352915503,1739418646798,-1266.55,0.00016438,2]
[352915504,1739418646809,-500.0,0.00016438,2]
[352915505,1739418646819,-1086.53,0.00016438,2]
[352915506,1739418646829,-933.68,0.00016438,2]
[352915507,1739418646838,-758.6,0.00016438,2]
[352915508,1739418646850,-500.0,0.00016438,2]
[352915509,1739418646863,-153.156692,0.00016438,2]
[352915510,1739418646872,-503.97794374,0.00016438,2]
[352915511,1739418646882,-500.0,0.00016438,2]
[352915512,1739418646892,-549.51,0.00016438,2]
[352915513,1739418646902,-500.0,0.00016438,2]
[352915514,1739418646912,-512.97856671,0.00016438,2]
[352915515,1739418646922,-868.71,0.00016438,2]
[352915516,1739418646932,-500.0,0.00016438,2]
[352915517,1739418646942,-500.0,0.00016438,2]
[352915518,1739418646951,-272.74663412,0.00016438,2]
[352915519,1739418646961,-500.0,0.00016438,2]
[352915520,1739418646972,-508.94735129,0.00016438,2]
[352915521,1739418646982,-788.78,0.00016438,2]
[352915522,1739418646991,-543.54,0.00016438,2]
[352915523,1739418647000,-502.06568557,0.00016438,2]
[352915524,1739418647010,-506.02331042,0.00016438,2]
[352915525,1739418647020,-519.64148462,0.00016438,2]
[352915526,1739418647029,-2801.32,0.00016438,2]
[352915527,1739418647038,-500.0,0.00016438,2]
[352915528,1739418647047,-3144.21,0.00016438,2]
[352915529,1739418647056,-1622.61,0.00016438,2]
[352915530,1739418647066,-500.0,0.00016438,2]
[352915531,1739418647075,-500.0,0.00016438,2]
[352915532,1739418647084,-2746.88,0.00016438,2]
[352915533,1739418647093,-506.25762426,0.00016438,2]
[352915534,1739418647104,-2128.89,0.00016438,2]
[352915535,1739418647115,-2129.89,0.00016438,2]
[352915536,1739418647124,-531.80631726,0.00016438,2]
[352915537,1739418647134,-500.0,0.00016438,2]
[352915538,1739418647144,-500.0,0.00016438,2]
[352915539,1739418647155,-502.84203094,0.00016438,2]
[352915540,1739418647165,-500.0,0.00016438,2]
[352915541,1739418647176,-2155.52,0.00016438,2]
[352915542,1739418647187,-1409.04,0.00016438,2]
[352915543,1739418647197,-500.0,0.00016438,2]
[352915544,1739418647208,-1300.39,0.00016438,2]
[352915545,1739418647218,-500.0,0.00016438,2]
[352915546,1739418647230,-4206.37,0.00016438,2]
[352915547,1739418647240,-500.0,0.00016438,2]
[352915548,1739418647251,-3671.98,0.00016438,2]
[352915549,1739418647260,-556.28,0.00016438,2]
[352915550,1739418647271,-500.0,0.00016438,2]
[352915551,1739418647283,-500.0,0.00016438,2]
[352915552,1739418647293,-500.0,0.00016438,2]
[352915553,1739418647303,-501.9098056,0.00016438,2]
[352915554,1739418647313,-500.0,0.00016438,2]
[352915555,1739418647323,-1911.94,0.00016438,2]
[352915556,1739418647332,-3073.81,0.00016438,2]
[352915557,1739418647345,-1391.88,0.00016438,2]
[352915558,1739418647355,-501.82390292,0.00016438,2]
[352915559,1739418647364,-500.0,0.00016438,2]
[352915560,1739418647374,-500.0,0.00016438,2]
[352915561,1739418647384,-1638.29,0.00016438,2]
[352915562,1739418647394,-1983.33,0.00016438,2]
[352915563,1739418647403,-500.86854493,0.00016438,2]
[352915564,1739418647414,-500.0,0.00016438,2]
[352915565,1739418647424,-2214.48,0.00016438,2]
[352915566,1739418647435,-1087.0,0.00016438,2]
[352915567,1739418647445,-500.0,0.00016438,2]
[352915568,1739418647455,-500.0,0.00016438,2]
[352915569,1739418647465,-1994.71,0.00016438,2]
[352915570,1739418647474,-500.0,0.00016438,2]
[352915571,1739418647485,-500.0,0.00016438,2]
[352915572,1739418647495,-500.0,0.00016438,2]
[352915573,1739418647505,-500.0,0.00016438,2]
[352915574,1739418647516,-500.0,0.00016438,2]
[352915575,1739418647526,-500.0,0.00016438,2]
[352915576,1739418647536,-2727.49,0.00016438,2]
[352915577,1739418647546,-500.0,0.00016438,2]
[352915578,1739418647555,-500.0,0.00016438,2]
[352915579,1739418647564,-1225.56,0.00016438,2]
[352915580,1739418647574,-500.0,0.00016438,2]
[352915581,1739418647583,-500.0,0.00016438,2]
[352915582,1739418647592,-2309.69,0.00016438,2]
[352915583,1739418647602,-1134.31,0.00016438,2]
[352915584,1739418647611,-3254.77,0.00016438,2]
[352915585,1739418647620,-1219.52,0.00016438,2]
[352915586,1739418647629,-1620.65,0.00016438,2]
[352915587,1739418647638,-1016.33,0.00016438,2]
[352915588,1739418647647,-716.01,0.00016438,2]
[352915589,1739418647656,-3174.06,0.00016438,2]
[352915590,1739418647665,-746.73,0.00016438,2]
[352915591,1739418647675,-500.0,0.00016438,2]
[352915592,1739418647685,-502.61636282,0.00016438,2]
[352915593,1739418647694,-3061.46,0.00016438,2]
[352915594,1739418647703,-1202.84,0.00016438,2]
[352915595,1739418647713,-500.0,0.00016438,2]
[352915596,1739418647722,-500.0,0.00016438,2]
[352915597,1739418647731,-1070.56,0.00016438,2]
[352915598,1739418647740,-987.92,0.00016438,2]
[352915599,1739418647750,-500.0,0.00016438,2]
[352915600,1739418647759,-2137.92,0.00016438,2]
[352915601,1739418647768,-500.0,0.00016438,2]
[352915602,1739418647777,-1120.47,0.00016438,2]
[352915603,1739418647786,-1188.59,0.00016438,2]
[352915604,1739418647795,-500.0,0.00016438,2]
[352915605,1739418647805,-1928.19,0.00016438,2]
[352915606,1739418647814,-2392.48,0.00016438,2]
[352915607,1739418647824,-1802.68,0.00016438,2]
[352915608,1739418647833,-1041.2,0.00016438,2]
[352915609,1739418647843,-500.61778684,0.00016438,2]
[352915610,1739418647852,-500.0,0.00016438,2]
[352915611,1739418647861,-500.0,0.00016438,2]
[352915612,1739418647870,-508.32390688,0.00016438,2]
[352915613,1739418647880,-1860.93,0.00016438,2]
[352915614,1739418647889,-1085.57,0.00016438,2]
[352915615,1739418647900,-500.0,0.00016438,2]
[352915616,1739418647910,-500.0,0.00016438,2]
[352915617,1739418647921,-1470.82,0.00016438,2]
[352915618,1739418647931,-2080.35,0.00016438,2]
[352915619,1739418647942,-500.0,0.00016438,2]
[352915620,1739418647953,-2734.95,0.00016438,2]
[352915621,1739418647963,-500.0,0.00016438,2]
[352915622,1739418647974,-500.0,0.00016438,2]
[352915623,1739418647984,-500.0,0.00016438,2]
[352915624,1739418647993,-1919.4,0.00016438,2]
[352915625,1739418648003,-501.61704198,0.00016438,2]
[352915626,1739418648013,-2313.56,0.00016438,2]
[352915627,1739418648023,-500.0,0.00016438,2]
[352915628,1739418648033,-500.0,0.00016438,2]
[352915629,1739418648043,-522.38195133,0.00016438,2]
[352915630,1739418648052,-2374.69,0.00016438,2]
[352915631,1739418648062,-2820.24,0.00016438,2]
[352915632,1739418648072,-655.1,0.00016438,2]
[352915633,1739418648082,-2169.58,0.00016438,2]
[352915634,1739418648092,-500.0,0.00016438,2]
[352915635,1739418648104,-1182.96,0.00016438,2]
[352915636,1739418648115,-500.0,0.00016438,2]
[352915637,1739418648125,-500.0,0.00016438,2]
[352915638,1739418648135,-1795.62,0.00016438,2]
[352915639,1739418648146,-3843.74,0.00016438,2]
[352915640,1739418648309,-1832.91,0.00016438,2]
[352915641,1739418648320,-501.94613126,0.00016438,2]
[352915642,1739418648330,-1554.36,0.00016438,2]
[352915643,1739418648341,-2327.11,0.00016438,2]
[352915644,1739418648352,-500.0,0.00016438,2]
[352915645,1739418648362,-500.0,0.00016438,2]
[352915646,1739418648372,-500.0,0.00016438,2]
[352915647,1739418648382,-1034.47,0.00016438,2]
[352915648,1739418648393,-646.55,0.00016438,2]
[352915649,1739418648403,-1177.77,0.00016438,2]
[352915650,1739418648414,-10997.73,0.00016438,2]
[352915651,1739418648424,-872.79,0.00016438,2]
[352915652,1739418648434,-2988.29,0.00016438,2]
[352915653,1739418648445,-2565.37,0.00016438,2]
[352915654,1739418648455,-4712.42,0.00016438,2]
[352915655,1739418648465,-2212.21277713,0.00016438,2]
[352915656,1739418648494,-605.04722287,0.00016438,2]
[352915657,1739418648503,-2009.06,0.00016438,2]
[352915658,1739418648514,-2162.61,0.00016438,2]
[352915659,1739418648524,-500.0,0.00016438,2]
[352915660,1739418648535,-500.0,0.00016438,2]
[352915661,1739418648545,-1390.66,0.00016438,2]
[352915662,1739418648555,-500.0,0.00016438,2]
[352915663,1739418648565,-500.0,0.00016438,2]
[352915664,1739418648575,-500.0,0.00016438,2]
[352915665,1739418648586,-1222.2,0.00016438,2]
[352915666,1739418648598,-697.14,0.00016438,2]
[352915667,1739418648608,-1239.47,0.00016438,2]
[352915668,1739418648620,-500.0,0.00016438,2]
[352915669,1739418648631,-3056.92,0.00016438,2]
[352915670,1739418648642,-4386.13,0.00016438,2]
[352915671,1739418648652,-843.79,0.00016438,2]
[352915672,1739418648663,-4189.66,0.00016438,2]
[352915673,1739418648674,-486.55050386,0.00016438,2]
[352915674,1739418648684,-500.0,0.00016438,2]
[352915675,1739418648695,-500.0,0.00016438,2]
[352915676,1739418648705,-3495.83,0.00016438,2]
[352915677,1739418648714,-1850.1,0.00016438,2]
[352915678,1739418648724,-505.46749097,0.00016438,2]
[352915679,1739418648734,-1398.42,0.00016438,2]
[352915680,1739418648744,-2459.25,0.00016438,2]
[352915681,1739418648754,-1410.18,0.00016438,2]
[352915682,1739418648763,-500.0,0.00016438,2]
[352915683,1739418648773,-502.48735559,0.00016438,2]
[352915684,1739418648783,-500.0,0.00016438,2]
[352915685,1739418648793,-513.36892056,0.00016438,2]
[352915686,1739418648804,-2400.05,0.00016438,2]
[352915687,1739418648814,-500.0,0.00016438,2]
[352915688,1739418648823,-500.0,0.00016438,2]
[352915689,1739418648834,-880.4,0.00016438,2]
[352915690,1739418648843,-3268.07,0.00016438,2]
[352915691,1739418648853,-198.35881073,0.00016438,2]
[352915692,1739418648864,-500.0,0.00016438,2]
[352915693,1739418648874,-500.0,0.00016438,2]
[352915694,1739418648884,-3389.08,0.00016438,2]
[352915695,1739418648894,-500.0,0.00016438,2]
[352915696,1739418648904,-1290.73,0.00016438,2]
[352915697,1739418648915,-691.71,0.00016438,2]
[352915698,1739418648925,-951.43,0.00016438,2]
[352915699,1739418648935,-3271.95,0.00016438,2]
[352915700,1739418648945,-500.74814861,0.00016438,2]
[352915701,1739418648956,-1106.38,0.00016438,2]
[352915702,1739418648967,-2409.97,0.00016438,2]
[352915703,1739418648977,-505.76513547,0.00016438,2]
[352915704,1739418648986,-500.0,0.00016438,2]
[352915705,1739418648996,-1992.1,0.00016438,2]
[352915706,1739418649005,-511.76850396,0.00016438,2]
[352915707,1739418649014,-4148.08,0.00016438,2]
[352915708,1739418649024,-520.85182323,0.00016438,2]
[352915709,1739418649033,-500.0,0.00016438,2]
[352915710,1739418649042,-500.0,0.00016438,2]
[352915711,1739418649052,-1806.31,0.00016438,2]
[352915712,1739418649062,-1958.13,0.00016438,2]
[352915713,1739418649072,-2794.21,0.00016438,2]
[352915714,1739418649082,-500.0,0.00016438,2]
[352915715,1739418649091,-500.0,0.00016438,2]
[352915716,1739418649102,-500.0,0.00016438,2]
[352915717,1739418649116,-500.0,0.00016438,2]
[352915718,1739418649126,-3037.3,0.00016438,2]
[352915719,1739418649136,-157.98812,0.00016438,2]
[352915720,1739418649147,-500.0,0.00016438,2]
[352915721,1739418649157,-500.0,0.00016438,2]
[352915722,1739418649167,-500.0,0.00016438,2]
[352915723,1739418649178,-2347.7,0.00016438,2]
[352915724,1739418649189,-500.0,0.00016438,2]
[352915725,1739418649199,-5708.59,0.00016438,2]
[352915726,1739418649208,-3045.53,0.00016438,2]
[352915727,1739418649218,-1039.12,0.00016438,2]
[352915728,1739418649228,-504.95704444,0.00016438,2]
[352915729,1739418649238,-1614.83,0.00016438,2]
[352915730,1739418649248,-5552.95,0.00016438,2]
[352915731,1739418649258,-5097.72,0.00016438,2]
[352915732,1739418649269,-500.0,0.00016438,2]
[352915733,1739418649279,-431.42010748,0.00016438,2]
[352915734,1739418649290,-500.0,0.00016438,2]
[352915735,1739418649300,-4174.32,0.00016438,2]
[352915736,1739418649310,-500.0,0.00016438,2]
[352915737,1739418649320,-500.0,0.00016438,2]
[352915738,1739418649330,-500.0,0.00016438,2]
[352915739,1739418649340,-1362.88,0.00016438,2]
[352915740,1739418649350,-1112.44,0.00016438,2]
[352915741,1739418649360,-197.4034856,0.00016438,2]
[352915742,1739418649370,-500.0,0.00016438,2]
[352915743,1739418649380,-955.39,0.00016438,2]
[352915744,1739418649390,-5002.24,0.00016438,2]
[352915745,1739418649401,-500.0,0.00016438,2]
[352915746,1739418649411,-500.0,0.00016438,2]
[352915747,1739418649423,-9781.43,0.00016438,2]
[352915748,1739418649433,-16.735324,0.00016438,2]
[352915749,1739418649448,-483.264676,0.00016438,2]
[352915750,1739418649458,-3103.74,0.00016438,2]
[352915751,1739418649469,-244.85799184,0.00016438,2]
[352915752,1739418649480,-2661.11997975,0.00016438,2]
[352915753,1739418649499,-315.15581231,0.00016438,2]
[352915754,1739418649512,-1589.68420794,0.00016438,2]
[352915755,1739418649523,-830.07,0.00016438,2]
[352915756,1739418649533,-500.0,0.00016438,2]
[352915757,1739418649544,-506.41954544,0.00016438,2]
[352915758,1739418649554,-1958.01,0.00016438,2]
[352915759,1739418649564,-1454.37,0.00016438,2]
[352915760,1739418649574,-500.0,0.00016438,2]
[352915761,1739418649583,-1758.08997776,0.00016438,2]
[352915762,1739418649595,-1204.84002224,0.00016438,2]
[352915763,1739418649604,-500.0,0.00016438,2]
[352915764,1739418649614,-200.0,0.00016438,2]
[352915765,1739418649624,-500.0,0.00016438,2]
[352915766,1739418649634,-500.0,0.00016438,2]
[352915767,1739418649644,-500.0,0.00016438,2]
[352915768,1739418649653,-5542.37877249,0.00016438,2]
[352915769,1739418649666,-1812.01122751,0.00016438,2]
[352915770,1739418649676,-500.0,0.00016438,2]
[352915771,1739418649686,-4247.03,0.00016438,2]
[352915772,1739418649695,-2384.74263711,0.00016438,2]
[352915773,1739418649707,-388.14736289,0.00016438,2]
[352915774,1739418649716,-500.0,0.00016438,2]
[352915775,1739418649726,-154.708824,0.00016438,2]
[352915776,1739418649735,-2511.2,0.00016438,2]
[352915777,1739418649744,-500.0,0.00016438,2]
[352915778,1739418649754,-1137.93,0.00016438,2]
[352915779,1739418649764,-500.0,0.00016438,2]
[352915780,1739418649773,-2119.45,0.00016438,2]
[352915781,1739418649783,-500.0,0.00016438,2]
[352915782,1739418649794,-500.0,0.00016438,2]
[352915783,1739418649803,-233.89955174,0.00016438,2]
[352915784,1739418649813,-32.21292289,0.00016438,2]
[352915785,1739418649825,-467.78707711,0.00016438,2]
[352915786,1739418649834,-552.73527792,0.00016438,2]
[352915787,1739418649844,-511.60736766,0.00016438,2]
[352915788,1739418649854,-543.53,0.00016438,2]
[352915789,1739418649866,-500.0,0.00016438,2]
[352915790,1739418649877,-2702.63,0.00016438,2]
[352915791,1739418649887,-1221.07,0.00016438,2]
[352915792,1739418649898,-500.0,0.00016438,2]
[352915793,1739418649909,-500.0,0.00016438,2]
[352915794,1739418649920,-500.0,0.00016438,2]
[352915795,1739418649930,-154.748107,0.00016438,2]
[352915796,1739418649940,-500.0,0.00016438,2]
[352915797,1739418649950,-289.7324052,0.00016438,2]
[352915798,1739418649962,-210.2675948,0.00016438,2]
[352915799,1739418649974,-500.9757914,0.00016438,2]
[352915800,1739418649983,-321.66826952,0.00016438,2]
[352915801,1739418649996,-183.07421202,0.00016438,2]
[352915802,1739418650006,-316.92578798,0.00016438,2]
[352915803,1739418650018,-350.32372873,0.00016438,2]
[352915804,1739418650029,-1119.38750957,0.00016438,2]
[352915805,1739418650058,-783.34611875,0.00016438,2]
[352915806,1739418650072,-397.42685497,0.00016438,2]
[352915807,1739418650082,-344.21339099,0.00016438,2]
[352915808,1739418650091,-197.35975399,0.00016438,2]
[352915809,1739418650107,-619.59446781,0.00016438,2]
[352915810,1739418650120,-654.839996,0.00016438,2]
[352915811,1739418650131,-3930.0157822,0.00016438,2]
[352915812,1739418650142,-500.0,0.00016438,2]
[352915813,1739418650153,-2274.44,0.00016438,2]
[352915814,1739418650163,-500.0,0.00016438,2]
[352915815,1739418650173,-5740.55,0.00016438,2]
[352915816,1739418650185,-777.25,0.00016438,2]
[352915817,1739418650194,-500.0,0.00016438,2]
[352915818,1739418650203,-2118.53,0.00016438,2]
[352915819,1739418650212,-1201.46,0.00016438,2]
[352915820,1739418650221,-638.02,0.00016438,2]
[352915821,1739418650231,-52.6322618,0.00016438,2]
[352915822,1739418650266,2850.0,0.00020743,120]
[352915823,1739418651133,-60635.46458784,0.00016345,2]
[352915824,1739418651151,-358.75622777,0.00016345,2]
[352915825,1739418651162,-6178.85343569,0.00016345,2]
[352915826,1739418651173,-112.5779642,0.00016438,2]
[352915827,1739418651185,-500.0,0.00016438,2]
[352915828,1739418651195,-3197.01,0.00016438,2]
[352915829,1739418651205,-515.21341065,0.00016438,2]
[352915830,1739418651215,-500.0,0.00016438,2]
[352915831,1739418651225,-500.0,0.00016438,2]
[352915832,1739418651234,-2457.15,0.00016438,2]
[352915833,1739418651243,-1312.66,0.00016438,2]
[352915834,1739418651253,-1016.01,0.00016438,2]
[352915835,1739418651262,-503.0410419,0.00016438,2]
[352915836,1739418651277,-500.0,0.00016438,2]
[352915837,1739418651288,-4284.01,0.00016438,2]
[352915838,1739418651298,-806.35,0.00016438,2]
[352915839,1739418651308,-500.0,0.00016438,2]
[352915840,1739418651318,-2777.22,0.00016438,2]
[352915841,1739418651328,-1554.45,0.00016438,2]
[352915842,1739418651338,-1869.06,0.00016438,2]
[352915843,1739418651348,-1081.32,0.00016438,2]
[352915844,1739418651358,-1491.63,0.00016438,2]
[352915845,1739418651367,-304.11,0.00016438,2]
[352915846,1739418651378,-1931.8,0.00016438,2]
[352915847,1739418651387,-500.0,0.00016438,2]
[352915848,1739418651402,-500.0,0.00016438,2]
[352915849,1739418651412,-500.0,0.00016438,2]
[352915850,1739418651423,-696.07,0.00016438,2]
[352915851,1739418651433,-1489.18,0.00016438,2]
[352915852,1739418651443,-500.0,0.00016438,2]
[352915853,1739418651452,-1792.68,0.00016438,2]
[352915854,1739418651463,-500.0,0.00016438,2]
[352915855,1739418651472,-4109.53,0.00016438,2]
[352915856,1739418651481,-500.0,0.00016438,2]
[352915857,1739418651491,-500.0,0.00016438,2]
[352915858,1739418651500,-500.0,0.00016438,2]
[352915859,1739418651510,-500.0,0.00016438,2]
[352915860,1739418651519,-500.0,0.00016438,2]
[352915861,1739418651529,-500.0,0.00016438,2]
[352915862,1739418651538,-506.19,0.00016438,2]
[352915863,1739418651548,-503.01,0.00016438,2]
[352915864,1739418651557,-150.0,0.00016438,2]
[352915865,1739418651567,-181.49892524,0.0001644,2]
[352915866,1739418651576,-181.49892524,0.0001644,2]
[352915867,1739418651585,-181.49892524,0.0001644,2]
[352915868,1739418651595,-181.49892524,0.0001644,2]
[352915869,1739418651604,-181.49892524,0.0001644,2]
[352915870,1739418651614,-181.49892524,0.0001644,2]
[352915871,1739418651623,-181.49892524,0.0001644,2]
[352915872,1739418651633,-181.49892524,0.0001644,2]
[352915873,1739418651642,-181.49892524,0.0001644,2]
[352915874,1739418651651,-181.49892524,0.0001644,2]
[352915875,1739418651661,-181.49892524,0.0001644,2]
[352915876,1739418651670,-181.49892524,0.0001644,2]
[352915877,1739418651681,-181.49892524,0.0001644,2]
[352915878,1739418651690,-181.49892524,0.0001644,2]
[352915879,1739418651699,-181.49892524,0.0001644,2]
[352915880,1739418651708,-181.49892524,0.0001644,2]
[352915881,1739418651717,-181.49892524,0.0001644,2]
[352915882,1739418651727,-181.49892524,0.0001644,2]
[352915883,1739418651736,-181.49892524,0.0001644,2]
[352915884,1739418651745,-181.49,0.0001644,2]
[352915885,1739418651755,-188.30295188,0.0001644,2]
[352915886,1739418651765,-188.30295188,0.0001644,2]
[352915887,1739418651774,-188.30295188,0.0001644,2]
[352915888,1739418651784,-188.30295188,0.0001644,2]
[352915889,1739418651793,-188.30295188,0.0001644,2]
[352915890,1739418651803,-188.30295188,0.0001644,2]
[352915891,1739418651812,-188.30295188,0.0001644,2]
[352915892,1739418651822,-188.30295188,0.0001644,2]
[352915893,1739418651831,-188.30295188,0.0001644,2]
[352915894,1739418651841,-188.30295188,0.0001644,2]
[352915895,1739418651850,-188.30295188,0.0001644,2]
[352915896,1739418651859,-188.30295188,0.0001644,2]
[352915897,1739418651869,-188.30295188,0.0001644,2]
[352915898,1739418651879,-188.30295188,0.0001644,2]
[352915899,1739418651888,-188.30295188,0.0001644,2]
[352915900,1739418651897,-188.30295188,0.0001644,2]
[352915901,1739418651907,-188.30295188,0.0001644,2]
[352915902,1739418651917,-188.30295188,0.0001644,2]
[352915903,1739418651927,-169.35559395,0.0001644,2]
[352915904,1739418652476,-18.94735793,0.0001644,2]
[352915905,1739418652486,-188.3,0.0001644,2]
[352915906,1739418652495,-236.28172184,0.0001644,2]
[352915907,1739418652507,-236.28172184,0.0001644,2]
[352915908,1739418652518,-236.28172184,0.0001644,2]
[352915909,1739418652527,-236.28172184,0.0001644,2]
[352915910,1739418652538,-236.28172184,0.0001644,2]
[352915911,1739418652548,-236.28172184,0.0001644,2]
[352915912,1739418652557,-236.28172184,0.0001644,2]
[352915913,1739418652568,-236.28172184,0.0001644,2]
[352915914,1739418652580,-236.28172184,0.0001644,2]
[352915915,1739418652589,-236.28172184,0.0001644,2]
[352915916,1739418652599,-236.28172184,0.0001644,2]
[352915917,1739418652608,-236.28172184,0.0001644,2]
[352915918,1739418652618,-236.28172184,0.0001644,2]
[352915919,1739418652627,-236.28172184,0.0001644,2]
[352915920,1739418652636,-236.28172184,0.0001644,2]
[352915921,1739418652646,-236.28172184,0.0001644,2]
[352915922,1739418652655,-236.28172184,0.0001644,2]
[352915923,1739418652664,-236.28172184,0.0001644,2]
[352915924,1739418652674,-236.28172184,0.0001644,2]
[352915925,1739418652683,-236.28,0.0001644,2]
[352915926,1739418652692,-500.0,0.00016473,2]
[352915927,1739418652701,-6771.65159217,0.0001648,2]
[352915928,1739418652712,-5197.04994013,0.0001648,2]
[352915929,1739418652724,-506.62630079,0.0001648,2]
[352915930,1739418652735,-352.72799642,0.0001648,2]
[352915931,1739418652746,-2276.54984636,0.0001648,2]
[352915932,1739418652757,-631.44,0.0001648,2]
[352915933,1739418652768,-1356.4999996,0.0001648,2]
[352915934,1739418652779,-8887.0000005,0.0001648,2]
[352915935,1739418652790,-14769.04104958,0.0001648,2]
[352915936,1739418652802,-19852.51822778,0.0001648,2]
[352915937,1739418653255,-390.67003474,0.00015892,2]
[352915938,1739418653294,-718.32996526,0.00015892,2]
[352915939,1739418653304,-495.66,0.00016428,2]
[352915940,1739418653313,-500.0,0.00016438,2]
[352915941,1739418653324,-501.55658341,0.00016438,2]
[352915942,1739418653334,-13991.34463317,0.0001648,2]
[352915943,1739418653343,-577.6623291,0.00016489,2]
[352915944,1739418653352,-188.7683012,0.00016489,2]
[352915945,1739418653362,-566.3049034,0.00016489,2]
[352915946,1739418653371,-151.0,0.0001649,2]
[352915947,1739418653382,-228.80404,0.0001649,2]
[352915948,1739418653394,-158707.79613299,0.0001649,20]
[352915949,1739418653405,-99456.5994487,0.0001649,2]
[352915950,1739418653415,-2000.0,0.00016499,2]
[352915951,1739418653427,-2000.0,0.00016499,2]
[352915952,1739418653438,-2000.0,0.00016499,2]
[352915953,1739418653447,-2000.0,0.00016499,2]
[352915954,1739418653457,-2000.0,0.00016499,2]